fUST/lending_fUST_20240128
["ID","MTS","AMOUNT","RATE_DAILY","PERIOD"]
[312886410,1706409039875,-500.0,0.00027396,2]
[312886411,1706409039884,-500.0,0.00027396,2]
[312886412,1706409039893,-500.0,0.00027396,2]
[312886413,1706409039902,-500.0,0.00027396,2]
[312886414,1706409039911,-500.0,0.00027396,2]
[312886415,1706409039922,-500.0,0.00027396,2]
[312886416,1706409039933,-500.0,0.00027396,2]
[312886417,1706409039942,-500.0,0.00027396,2]
[312886418,1706409039952,-500.0,0.00027396,2]
[312886419,1706409039961,-500.0,0.00027396,2]
[312886420,1706409039970,-500.0,0.00027396,2]
[312886421,1706409039979,-500.0,0.00027396,2]
[312886422,1706409039988,-500.0,0.00027396,2]
[312886423,1706409039998,-500.0,0.00027396,2]
[312886424,1706409040007,-500.0,0.00027396,2]
[312886425,1706409040017,-500.0,0.00027396,2]
[312886426,1706409040026,-500.0,0.00027396,2]
[312886427,1706409040035,-500.0,0.00027396,2]
[312886428,1706409040045,-500.0,0.00027396,2]
[312886429,1706409040054,-500.0,0.00027396,2]
[312886430,1706409040064,-500.0,0.00027396,2]
[312886431,1706409040073,-500.0,0.00027396,2]
[312886432,1706409040085,-500.0,0.00027396,2]
[312886433,1706409040094,-500.0,0.00027396,2]
[312886434,1706409040104,-500.0,0.00027396,2]
[312886435,1706409040113,-500.0,0.00027396,2]
[312886436,1706409040123,-378.83688082,0.00027396,2]
[312886437,1706409040132,-500.0,0.00027396,2]
[312886438,1706409040141,-500.0,0.00027396,2]
[312886439,1706409040152,-500.0,0.00027396,2]
[312886440,1706409040162,-500.0,0.00027396,2]
[312886441,1706409040172,-500.0,0.00027396,2]
[312886442,1706409040182,-500.0,0.00027396,2]
[312886443,1706409040191,-554.76556789,0.00027396,2]
[312886444,1706409040201,-500.0,0.00027396,2]
[312886445,1706409040210,-500.0,0.00027396,2]
[312886446,1706409040220,-500.0,0.00027396,2]
[312886447,1706409040230,-500.0,0.00027396,2]
[312886448,1706409040240,-500.0,0.00027396,2]
[312886449,1706409040249,-500.0,0.00027396,2]
[312886450,1706409040258,-500.0,0.00027396,2]
[312886451,1706409040268,-500.0,0.00027396,2]
[312886452,1706409040278,-349.98461015,0.00027396,2]
[312886453,1706409040288,-500.0,0.00027396,2]
[312886454,1706409040297,-500.0,0.00027396,2]
[312886455,1706409040306,-425.31454102,0.00027396,2]
[312886456,1706409040316,-196.58601966,0.00027396,2]
[312886457,1706409040325,-500.0,0.00027396,2]
[312886458,1706409040334,-600.0,0.00027396,2]
[312886459,1706409040344,-500.0,0.00027396,2]
[312886460,1706409040353,-500.0,0.00027396,2]
[312886461,1706409040362,-336.5554974,0.00027396,2]
[312886462,1706409040371,-500.0,0.00027396,2]
[312886463,1706409040380,-500.0,0.00027396,2]
[312886464,1706409040390,-500.0,0.00027396,2]
[312886465,1706409040400,-500.0,0.00027396,2]
[312886466,1706409040410,-500.0,0.00027396,2]
[312886467,1706409040420,-500.0,0.00027396,2]
[312886468,1706409040430,-500.0,0.00027396,2]
[312886469,1706409040441,-500.0,0.00027396,2]
[312886470,1706409040452,-500.0,0.00027396,2]
[312886471,1706409040461,-500.0,0.00027396,2]
[312886472,1706409040472,-586.91191757,0.00027396,2]
[312886473,1706409040482,-500.0,0.00027396,2]
[312886474,1706409040493,-500.0,0.00027396,2]
[312886475,1706409040505,-500.0,0.00027396,2]
[312886476,1706409040516,-500.0,0.00027396,2]
[312886477,1706409040525,-500.0,0.00027396,2]
[312886478,1706409040534,-606.61477475,0.00027396,2]
[312886479,1706409040543,-500.0,0.00027396,2]
[312886480,1706409040552,-384.87534231,0.00027396,2]
[312886481,1706409040562,-500.0,0.00027396,2]
[312886482,1706409040571,-500.0,0.00027396,2]
[312886483,1706409040580,-500.0,0.00027396,2]
[312886484,1706409040588,-500.0,0.00027396,2]
[312886485,1706409040598,-500.0,0.00027396,2]
[312886486,1706409040607,-500.0,0.00027396,2]
[312886487,1706409040617,-300.0,0.00027396,2]
[312886488,1706409040626,-500.0,0.00027396,2]
[312886489,1706409040635,-500.0,0.00027396,2]
[312886490,1706409040712,-500.0,0.00027396,2]
[312886491,1706409040721,-500.0,0.00027396,2]
[312886492,1706409040730,-500.0,0.00027396,2]
[312886493,1706409040739,-500.0,0.00027396,2]
[312886494,1706409040748,-608.69119175,0.00027396,2]
[312886495,1706409040758,-500.0,0.00027396,2]
[312886496,1706409040767,-500.0,0.00027396,2]
[312886497,1706409040777,-500.0,0.00027396,2]
[312886498,1706409040786,-500.0,0.00027396,2]
[312886499,1706409040796,-500.0,0.00027396,2]
[312886500,1706409040805,-500.0,0.00027396,2]
[312886501,1706409040815,-500.0,0.00027396,2]
[312886502,1706409040824,-500.0,0.00027396,2]
[312886503,1706409040834,-500.0,0.00027396,2]
[312886504,1706409040844,-500.0,0.00027396,2]
[312886505,1706409040854,-500.0,0.00027396,2]
[312886506,1706409040863,-500.0,0.00027396,2]
[312886507,1706409040874,-500.0,0.00027396,2]
[312886508,1706409040884,-500.0,0.00027396,2]
[312886509,1706409040894,-500.0,0.00027396,2]
[312886510,1706409040904,-500.0,0.00027396,2]
[312886511,1706409040915,-500.0,0.00027396,2]
[312886512,1706409040925,-500.0,0.00027396,2]
[312886513,1706409040936,-500.0,0.00027396,2]
[312886514,1706409040946,-500.0,0.00027396,2]
[312886515,1706409040957,-499.0,0.00027396,2]
[312886516,1706409040966,-500.0,0.00027397,2]
[312886517,1706409040975,-500.0,0.00027397,2]
[312886518,1706409040985,-500.0,0.00027397,2]
[312886519,1706409040995,-500.0,0.00027397,2]
[312886520,1706409041005,-500.0,0.00027397,2]
[312886521,1706409041015,-500.0,0.00027397,2]
[312886522,1706409041027,-500.0,0.00027397,2]
[312886523,1706409041037,-500.0,0.00027397,2]
[312886524,1706409041047,-915.71,0.00027397,2]
[312886525,1706409041058,-500.0,0.00027397,2]
[312886526,1706409041067,-507.78936856,0.00027397,2]
[312886527,1706409041076,-500.0,0.00027397,2]
[312886528,1706409041091,-263.8252371,0.00027397,2]
[312886529,1706409041102,-529.75,0.00027397,2]
[312886530,1706409041112,-500.0,0.00027397,2]
[312886531,1706409041121,-500.0,0.00027397,2]
[312886532,1706409041131,-500.0,0.00027397,2]
[312886533,1706409041141,-500.0,0.00027397,2]
[312886534,1706409041150,-500.0,0.00027397,2]
[312886535,1706409041160,-522.87,0.00027397,2]
[312886536,1706409041169,-500.0,0.00027397,2]
[312886537,1706409041178,-1002.23887986,0.00027397,2]
[312886538,1706409041186,-500.0,0.00027397,2]
[312886539,1706409041196,-500.0,0.00027397,2]
[312886540,1706409041205,-500.0,0.00027397,2]
[312886541,1706409041213,-601.87947439,0.00027397,2]
[312886542,1706409041223,-500.0,0.00027397,2]
[312886543,1706409041232,-500.0,0.00027397,2]
[312886544,1706409041241,-500.0,0.00027397,2]
[312886545,1706409041250,-501.56619566,0.00027397,2]
[312886546,1706409041259,-500.0,0.00027397,2]
[312886547,1706409041268,-500.0,0.00027397,2]
[312886548,1706409041278,-853.73,0.00027397,2]
[312886549,1706409041288,-154.777918,0.00027397,2]
[312886550,1706409041297,-500.0,0.00027397,2]
[312886551,1706409041306,-500.0,0.00027397,2]
[312886552,1706409041315,-500.0,0.00027397,2]
[312886553,1706409041325,-500.0,0.00027397,2]
[312886554,1706409041334,-500.0,0.00027397,2]
[312886555,1706409041343,-500.0,0.00027397,2]
[312886556,1706409041353,-185.58917988,0.00027397,2]
[312886557,1706409041362,-500.0,0.00027397,2]
[312886558,1706409041371,-500.0,0.00027397,2]
[312886559,1706409041380,-500.0,0.00027397,2]
[312886560,1706409041389,-500.0,0.00027397,2]
[312886561,1706409041398,-500.0,0.00027397,2]
[312886562,1706409041407,-500.0,0.00027397,2]
[312886563,1706409041416,-500.0,0.00027397,2]
[312886564,1706409041426,-483.73588031,0.00027397,2]
[312886565,1706409041435,-500.0,0.00027397,2]
[312886566,1706409041444,-500.0,0.00027397,2]
[312886567,1706409041454,-1449.35,0.00027397,2]
[312886568,1706409041463,-500.0,0.00027397,2]
[312886569,1706409041472,-2074.42,0.00027397,2]
[312886570,1706409041481,-632.8967434,0.00027397,2]
[312886571,1706409041490,-500.0,0.00027397,2]
[312886572,1706409041498,-500.0,0.00027397,2]
[312886573,1706409041508,-500.0,0.00027397,2]
[312886574,1706409041516,-500.0,0.00027397,2]
[312886575,1706409041525,-943.67,0.00027397,2]
[312886576,1706409041535,-1768.69,0.00027397,2]
[312886577,1706409041544,-500.0,0.00027397,2]
[312886578,1706409041553,-500.0,0.00027397,2]
[312886579,1706409041562,-500.0,0.00027397,2]
[312886580,1706409041571,-500.0,0.00027397,2]
[312886581,1706409041580,-500.0,0.00027397,2]
[312886582,1706409041589,-500.0,0.00027397,2]
[312886583,1706409041601,-592.43931251,0.00027397,2]
[312886584,1706409041610,-5529.41,0.00027397,2]
[312886585,1706409041620,-897.64,0.00027397,2]
[312886586,1706409041629,-1757.48,0.00027397,2]
[312886587,1706409041639,-500.0,0.00027397,2]
[312886588,1706409041648,-500.0,0.00027397,2]
[312886589,1706409041658,-500.0,0.00027397,2]
[312886590,1706409041667,-500.0,0.00027397,2]
[312886591,1706409041677,-500.0,0.00027397,2]
[312886592,1706409041686,-517.35073391,0.00027397,2]
[312886593,1706409041696,-500.0,0.00027397,2]
[312886594,1706409041704,-500.0,0.00027397,2]
[312886595,1706409041714,-153.33165401,0.00027397,2]
[312886596,1706409041724,-581.3,0.00027397,2]
[312886597,1706409041733,-500.0,0.00027397,2]
[312886598,1706409041742,-560.74,0.00027397,2]
[312886599,1706409041753,-500.0,0.00027397,2]
[312886600,1706409041762,-500.0,0.00027397,2]
[312886601,1706409041771,-577.63888741,0.00027397,2]
[312886602,1706409041781,-507.52553747,0.00027397,2]
[312886603,1706409041790,-500.0,0.00027397,2]
[312886604,1706409041799,-500.0,0.00027397,2]
[312886605,1706409041809,-500.0,0.00027397,2]
[312886606,1706409041818,-151.0,0.00027397,2]
[312886607,1706409041827,-151.0,0.00027397,2]
[312886608,1706409041836,-151.0,0.00027397,2]
[312886609,1706409041846,-151.0,0.00027397,2]
[312886610,1706409041856,-151.0,0.00027397,2]
[312886611,1706409041866,-151.0,0.00027397,2]
[312886612,1706409041875,-259.166815,0.00027397,2]
[312886613,1706409041884,-500.0,0.00027397,2]
[312886614,1706409041893,-527.14,0.00027397,2]
[312886615,1706409041903,-500.0,0.00027397,2]
[312886616,1706409041912,-500.0,0.00027397,2]
[312886617,1706409041921,-635.07,0.00027397,2]
[312886618,1706409041930,-1451.23,0.00027397,2]
[312886619,1706409041941,-504.04847332,0.00027397,2]
[312886620,1706409041951,-500.0,0.00027397,2]
[312886621,1706409041960,-500.0,0.00027397,2]
[312886622,1706409041969,-2618.59,0.00027397,2]
[312886623,1706409041978,-500.0,0.00027397,2]
[312886624,1706409041988,-151.0,0.00027397,2]
[312886625,1706409041997,-151.0,0.00027397,2]
[312886626,1706409042008,-151.0,0.00027397,2]
[312886627,1706409042018,-151.0,0.00027397,2]
[312886628,1706409042028,-151.0,0.00027397,2]
[312886629,1706409042038,-151.0,0.00027397,2]
[312886630,1706409042048,-151.0,0.00027397,2]
[312886631,1706409042057,-151.0,0.00027397,2]
[312886632,1706409042069,-245.0,0.00027397,2]
[312886633,1706409042149,-500.0,0.00027397,2]
[312886634,1706409042159,-270.96680179,0.00027397,2]
[312886635,1706409042169,-500.0,0.00027397,2]
[312886636,1706409042178,-167.017897,0.00027397,2]
[312886637,1706409042187,-167.017897,0.00027397,2]
[312886638,1706409042198,-167.017897,0.00027397,2]
[312886639,1706409042207,-167.017897,0.00027397,2]
[312886640,1706409042217,-167.017897,0.00027397,2]
[312886641,1706409042226,-167.017897,0.00027397,2]
[312886642,1706409042235,-167.017897,0.00027397,2]
[312886643,1706409042245,-167.017897,0.00027397,2]
[312886644,1706409042254,-500.0,0.00027397,2]
[312886645,1706409042263,-500.0,0.00027397,2]
[312886646,1706409042273,-500.0,0.00027397,2]
[312886647,1706409042282,-500.0,0.00027397,2]
[312886648,1706409042291,-522.45883289,0.00027397,2]
[312886649,1706409042300,-500.0,0.00027397,2]
[312886650,1706409042310,-500.0,0.00027397,2]
[312886651,1706409042319,-945.44,0.00027397,2]
[312886652,1706409042328,-1907.85,0.00027397,2]
[312886653,1706409042338,-500.0,0.00027397,2]
[312886654,1706409042349,-500.0,0.00027397,2]
[312886655,1706409042359,-500.0,0.00027397,2]
[312886656,1706409042369,-1781.92,0.00027397,2]
[312886657,1706409042379,-1024.81,0.00027397,2]
[312886658,1706409042388,-854.84,0.00027397,2]
[312886659,1706409042398,-156.42516188,0.00027397,2]
[312886660,1706409042408,-500.0,0.00027397,2]
[312886661,1706409042419,-500.0,0.00027397,2]
[312886662,1706409042429,-513.07699649,0.00027397,2]
[312886663,1706409042439,-500.0,0.00027397,2]
[312886664,1706409042448,-2250.28,0.00027397,2]
[312886665,1706409042460,-500.0,0.00027397,2]
[312886666,1706409042469,-500.0,0.00027397,2]
[312886667,1706409042479,-506.16816431,0.00027397,2]
[312886668,1706409042487,-500.0,0.00027397,2]
[312886669,1706409042496,-500.0,0.00027397,2]
[312886670,1706409042506,-500.0,0.00027397,2]
[312886671,1706409042516,-500.0,0.00027397,2]
[312886672,1706409042526,-500.0,0.00027397,2]
[312886673,1706409042535,-39574.96,0.00027397,2]
[312886674,1706409042545,-500.0,0.00027397,2]
[312886675,1706409042555,-500.0,0.00027397,2]
[312886676,1706409042565,-500.0,0.00027397,2]
[312886677,1706409042574,-152.035045,0.00027397,2]
[312886678,1706409042583,-557.81,0.00027397,2]
[312886679,1706409042592,-500.0,0.00027397,2]
[312886680,1706409042601,-212.272603,0.00027397,2]
[312886681,1706409042610,-212.272603,0.00027397,2]
[312886682,1706409042619,-212.272603,0.00027397,2]
[312886683,1706409042628,-212.272603,0.00027397,2]
[312886684,1706409042637,-212.272603,0.00027397,2]
[312886686,1706409042646,-3216.63,0.00027397,2]
[312886688,1706409042655,-212.272603,0.00027397,2]
[312886689,1706409042663,-212.272603,0.00027397,2]
[312886690,1706409042672,-212.272603,0.00027397,2]
[312886691,1706409042682,-1389.2,0.00027397,2]
[312886692,1706409042691,-510.55596455,0.00027397,2]
[312886693,1706409042701,-501.6740984,0.00027397,2]
[312886694,1706409042710,-500.0,0.00027397,2]
[312886695,1706409042719,-6139.14,0.00027397,2]
[312886696,1706409042729,-2315.71,0.00027397,2]
[312886697,1706409042739,-500.0,0.00027397,2]
[312886698,1706409042750,-507.19570308,0.00027397,2]
[312886699,1706409042760,-1101.56,0.00027397,2]
[312886700,1706409042769,-1284.52,0.00027397,2]
[312886701,1706409042778,-151.0,0.00027397,2]
[312886702,1706409042787,-151.0,0.00027397,2]
[312886703,1706409042797,-151.0,0.00027397,2]
[312886704,1706409042806,-151.0,0.00027397,2]
[312886705,1706409042816,-151.0,0.00027397,2]
[312886706,1706409042826,-151.0,0.00027397,2]
[312886707,1706409042836,-500.0,0.00027397,2]
[312886708,1706409042846,-153.00702,0.00027397,2]
[312886709,1706409042855,-500.0,0.00027397,2]
[312886710,1706409042864,-505.66157269,0.00027397,2]
[312886711,1706409042874,-1317.76,0.00027397,2]
[312886712,1706409042883,-11613.84,0.00027397,2]
[312886713,1706409042892,-500.0,0.00027397,2]
[312886714,1706409042901,-4549.57,0.00027397,2]
[312886715,1706409042911,-500.0,0.00027397,2]
[312886718,1706409042920,-500.0,0.00027397,2]
[312886721,1706409042929,-500.0,0.00027397,2]
[312886723,1706409042937,-500.0,0.00027397,2]
[312886725,1706409042946,-500.0,0.00027397,2]
[312886728,1706409042956,-500.0,0.00027397,2]
[312886730,1706409042964,-509.28956681,0.00027397,2]
[312886732,1706409042975,-2708.54,0.00027397,2]
[312886734,1706409042984,-500.0,0.00027397,2]
[312886737,1706409042994,-503.02,0.00027397,2]
[312886739,1706409043004,-511.32578597,0.00027397,2]
[312886741,1706409043013,-500.0,0.00027397,2]
[312886743,1706409043023,-500.0,0.00027397,2]
[312886746,1706409043032,-500.0,0.00027397,2]
[312886749,1706409043041,-1068.86,0.00027397,2]
[312886752,1706409043050,-2592.07,0.00027397,2]
[312886754,1706409043059,-500.0,0.00027397,2]
[312886756,1706409043069,-500.0,0.00027397,2]
[312886758,1706409043078,-500.0,0.00027397,2]
[312886760,1706409043090,-500.0,0.00027397,2]
[312886762,1706409043100,-500.0,0.00027397,2]
[312886764,1706409043110,-500.0,0.00027397,2]
[312886766,1706409043119,-1124.56,0.00027397,2]
[312886768,1706409043130,-14975.32,0.00027397,2]
[312886770,1706409043139,-152.51532776,0.00027397,2]
[312886772,1706409043148,-500.0,0.00027397,2]
[312886773,1706409043158,-4918.92,0.00027397,2]
[312886774,1706409043169,-480.768117,0.00027397,2]
[312886775,1706409043178,-480.768117,0.00027397,2]
[312886776,1706409043188,-480.768117,0.00027397,2]
[312886777,1706409043197,-480.768117,0.00027397,2]
[312886779,1706409043206,-586.24628972,0.00027397,2]
[312886780,1706409043215,-480.768117,0.00027397,2]
[312886781,1706409043224,-1488.38,0.00027397,2]
[312886782,1706409043234,-480.768117,0.00027397,2]
[312886783,1706409043243,-500.0,0.00027397,2]
[312886784,1706409043252,-500.0,0.00027397,2]
[312886785,1706409043261,-500.0,0.00027397,2]
[312886786,1706409043270,-480.768117,0.00027397,2]
[312886787,1706409043280,-480.768117,0.00027397,2]
[312886788,1706409043289,-512.16512598,0.00027397,2]
[312886789,1706409043298,-4392.68,0.00027397,2]
[312886790,1706409043307,-1556.64,0.00027397,2]
[312886791,1706409043316,-500.0,0.00027397,2]
[312886792,1706409043326,-3422.07,0.00027397,2]
[312886793,1706409043335,-500.0,0.00027397,2]
[312886794,1706409043344,-810.01,0.00027397,2]
[312886795,1706409043354,-500.0,0.00027397,2]
[312886796,1706409043363,-10120.67547547,0.00027397,2]
[312886800,1706409044046,-13220.03520938,0.00025629,3]
[312886801,1706409044058,-1163.08479062,0.00025629,3]
[312886802,1706409044067,-271.93451963,0.00027397,2]
[312886833,1706410151787,261.12239909,0.00019966,7]
[312887112,1706410246746,-1584.05603829,0.00019963,2]
[312887113,1706410246755,-303.81437787,0.00019963,2]
[312887114,1706410246764,-155.02635448,0.00019964,3]
[312887115,1706410246774,-1774.09643899,0.00019964,2]
[312887116,1706410246784,-654.58212953,0.0002,2]
[312887117,1706410246793,-169.523907,0.00021468,2]
[312887118,1706410246802,-2036.5412467,0.00022,2]
[312887119,1706410246810,-3972.88161015,0.00022999,2]
[312887120,1706410246820,-1417.01955965,0.00023,2]
[312887121,1706410246829,-166.666666,0.00023024,2]
[312887122,1706410246838,-166.666666,0.00023652,2]
[312887123,1706410246847,-166.666666,0.0002428,2]
[312887124,1706410246856,-314.8733444,0.00024658,2]
[312887125,1706410246866,-166.666666,0.00024907,2]
[312887126,1706410246875,-7652.00570539,0.00025,2]
[312887127,1706410246883,-153.50068831,0.00025197,2]
[312887128,1706410246893,-1153.18458284,0.00025296,2]
[312887135,1706410468531,3940.21871711,0.0001,2]
[312887136,1706410468559,8061.37016178,0.0001,2]
[312887137,1706410481719,234.47285412,0.0001,2]
[312887138,1706410482301,684.8398126,0.0001,2]
[312887140,1706410483717,155.02635448,0.0001,2]
[312887141,1706410485704,535.71086689,0.0001,2]
[312887142,1706410489415,3221.28422079,0.0001,2]
[312887143,1706410497782,155.02635448,0.0001,2]
[312887144,1706410497816,288.8935779,0.0001,2]
[312887145,1706410499726,156.09910949,0.0001,2]
[312887146,1706410500283,684.8398126,0.0001,2]
[312887147,1706410501701,535.71086689,0.0001,2]
[312887148,1706410509417,286.72600798,0.0001,2]
[312887149,1706410509447,2934.55821281,0.0001,2]
[312887150,1706410513715,155.02635448,0.0001,2]
[312887151,1706410517701,535.71086689,0.0001,2]
[312887152,1706410518300,684.8398126,0.0001,2]
[312887153,1706410529420,3221.28422079,0.0001,2]
[312887154,1706410529707,155.02635448,0.0001,2]
[312887155,1706410533705,535.71086689,0.0001,2]
[312887156,1706410536299,684.8398126,0.0001,2]
[312887157,1706410547627,3221.28422079,0.0001,2]
[312887158,1706410551706,291.42261222,0.0001,2]
[312887159,1706410551742,155.02635448,0.0001,2]
[312887160,1706410558301,684.8398126,0.0001,2]
[312887161,1706410562269,155.29727066,9e-05,2]
[312887162,1706410565427,1906.35776525,0.0001,2]
[312887163,1706410573718,273.44634925,0.0001,2]
[312887164,1706410578303,562.5070814,0.0001,2]
[312887165,1706410584208,252.49489232,9e-05,2]
[312887171,1706411304415,344.55101454,0.0001,2]
[312887172,1706411324400,343.32585956,0.0001,2]
[312887173,1706411342394,290.47030817,0.0001,2]
[312887174,1706411346563,548.49851993,0.00015,2]
[312887175,1706411364564,548.49851993,0.00015,2]
[312887176,1706411382561,180.67906986,0.00015,2]
[312887223,1706411438047,-155.02635448,0.00021949,2]
[312887224,1706411438056,-303.81437787,0.00021949,2]
[312887225,1706411438066,-1584.05603829,0.0002195,2]
[312887226,1706411438076,-1774.09643899,0.00021951,2]
[312887227,1706411438085,-167.17885377,0.00021951,2]
[312887228,1706411438096,-155.02635448,0.00021951,4]
[312887229,1706411438105,-1356.81055732,0.00021991,2]
[312887230,1706411438116,-2036.5412467,0.00022,2]
[312887231,1706411438125,-3972.88161015,0.00022,2]
[312887232,1706411438135,-166.666666,0.00022748,2]
[312887233,1706411438146,-824.08134092,0.000229,2]
[312887234,1706411438157,-1417.01955965,0.00023,2]
[312887235,1706411438166,-168.803845,0.00023115,2]
[312887236,1706411438177,-166.666666,0.00023368,2]
[312887237,1706411438186,-166.666666,0.00023988,2]
[312887238,1706411438196,-169.548192,0.00024438,2]
[312887239,1706411438206,-166.666666,0.00024608,2]
[312887240,1706411438217,-4018.69495971,0.00024999,2]
[312887241,1706411438226,-4729.25513018,0.00025,2]
[312887242,1706411438236,-199.4949389,0.00025205,2]
[312887243,1706411438246,-155.02635448,0.00025227,2]
[312887244,1706411438256,-166.666666,0.00025228,2]
[312887245,1706411438265,-153.0,0.00025278,2]
[312887246,1706411438274,-199.4949389,0.00025278,2]
[312887247,1706411438283,-153.0,0.00025278,2]
[312887248,1706411438292,-199.4949389,0.00025278,2]
[312887249,1706411438301,-153.0,0.00025278,2]
[312887250,1706411438310,-199.4949389,0.00025278,2]
[312887251,1706411438320,-764.91467739,0.00025296,2]
[312887252,1706411438329,-155.7799273,0.00025378,2]
[312887253,1706411438338,-306.7595336,0.00025378,2]
[312887254,1706411438347,-307.4236735,0.00025378,2]
[312887255,1706411438356,-199.4949389,0.00025378,2]
[312887256,1706411438365,-384.9894508,0.00025378,2]
[312887257,1706411438374,-12350.02,0.00025561,3]
[312887258,1706411438383,-16620.26,0.00025561,3]
[312887259,1706411438392,-50000.0,0.00025571,2]
[312887260,1706411438401,-166.666666,0.00025849,2]
[312887261,1706411438411,-500.08990041,0.00026025,5]
[312887262,1706411438421,-403.3122045,0.00026027,2]
[312887263,1706411438430,-150.457,0.00027037,2]
[312887264,1706411438440,-871.64402929,0.00027143,2]
[312887265,1706411438450,-1376.49457106,0.00027297,2]
[312887266,1706411438460,-1969.64177787,0.00027367,2]
[312887267,1706411438469,-734.82078451,0.00027394,2]
[312887268,1706411438478,-235.52852901,0.00027394,2]
[312887269,1706411438489,-155.26830756,0.00027394,2]
[312887270,1706411438500,-564.35065967,0.00027394,2]
[312887271,1706411438510,-9706.28660044,0.00027394,2]
[312887272,1706411438520,-200.33169759,0.00027394,2]
[312887273,1706411438530,-1280.8448824,0.00027394,2]
[312887274,1706411438540,-200.31837723,0.00027394,2]
[312887275,1706411438550,-167.91138179,0.00027394,2]
[312887276,1706411438559,-854.72020384,0.00027394,2]
[312887277,1706411438569,-260.34510877,0.00027394,2]
[312887278,1706411438580,-832.31978775,0.00027394,2]
[312887279,1706411438590,-175.85306892,0.00027394,2]
[312887280,1706411438603,-155.40321839,0.00027394,2]
[312887281,1706411438613,-157.218769,0.00027394,2]
[312887282,1706411438622,-324.77162892,0.00027395,2]
[312887283,1706411438632,-371.90671645,0.00027395,2]
[312887284,1706411438642,-265.23996911,0.00027395,2]
[312887285,1706411438651,-815.64735983,0.00027395,2]
[312887286,1706411438660,-8695.02332386,0.00027395,2]
[312887287,1706411438670,-385.69582981,0.00027395,2]
[312887288,1706411438679,-261.01585625,0.00027395,7]
[312887289,1706411438689,-156.23927426,0.00027395,2]
[312887290,1706411438698,-1588.67066985,0.00027395,2]
[312887291,1706411438708,-304.98367693,0.00027395,2]
[312887292,1706411438717,-4777.64557083,0.00027395,2]
[312887293,1706411438728,-278.56764015,0.00027395,2]
[312887294,1706411438737,-726.42993637,0.00027395,2]
[312887295,1706411438746,-2117.13657461,0.00027395,2]
[312887296,1706411438756,-264.08555885,0.00027395,2]
[312887297,1706411438765,-561.71195704,0.00027395,2]
[312887298,1706411438774,-2859.45135237,0.00027395,2]
[312887299,1706411438784,-155.650869,0.00027395,2]
[312887300,1706411438794,-522.75671108,0.00027395,2]
[312887301,1706411438806,-155.31545945,0.00027395,2]
[312887302,1706411438816,-275.97371749,0.00027395,2]
[312887303,1706411438825,-155.48212524,0.00027395,2]
[312887304,1706411438835,-885.36048237,0.00027395,2]
[312887305,1706411438845,-244.60240776,0.00027395,2]
[312887306,1706411438854,-155.86099899,0.00027395,2]
[312887307,1706411438865,-296.30920626,0.00027395,2]
[312887308,1706411438875,-239.03414559,0.00027396,2]
[312887309,1706411438884,-155.14016917,0.00027396,2]
[312887310,1706411438894,-155.84359796,0.00027396,2]
[312887311,1706411438903,-168.82347233,0.00027396,2]
[312887312,1706411438912,-500.0,0.00027396,2]
[312887313,1706411438921,-500.0,0.00027396,2]